bitfinex-derivatives/quotes_ETHF0:USTF0_20251021
["timestamp","ask_amount","ask_price","bid_price","bid_amount"]
[1761062018042,3.21012947,4085.1,4085.0,1.67002]
[1761062019842,1.3368,4085.0,4084.1,1.2295]
[1761062020044,1.3368,4084.1,4084.0,0.00307402]
[1761062021340,6.3368,4084.1,4084.0,0.00307402]
[1761062021839,1.7775,4083.4,4083.2,1.2295]
[1761062022146,1.77748,4083.5,4083.4,0.44069]
[1761062022642,3.2078,4083.6,4083.4,0.44069]
[1761062022841,3.2078,4083.6,4083.5,1.2295]
[1761062023041,1.3368,4083.5,4083.4,0.00230854]
[1761062023439,3.64847,4083.6,4083.5,1.67018]
[1761062023945,4.98527,4083.6,4083.5,0.44068]
[1761062024138,3.64847,4083.6,4083.4,0.00230854]
[1761062024341,1.3368,4083.5,4083.4,0.00230854]
[1761062025633,3.2078,4083.6,4083.5,1.67018]
[1761062025936,10.94046,4083.8,4083.7,1.2295]
[1761062026141,9.60366,4083.8,4083.7,1.2295]
[1761062026343,9.163,4083.8,4083.7,1.2295]
[1761062026850,9.163,4083.8,4083.7,1.67016]
[1761062027740,0.44063,4084.0,4083.9,0.44063]
[1761062028051,3.2078,4084.1,4084.0,1.67013]
[1761062028552,4.5446,4084.7,4084.1,1.2295]
[1761062028851,4.5446,4084.7,4083.7,3.2078]
[1761062028852,1.3368,4084.0,4083.9,1.2295]
[1761062029044,0.44068,4083.5,4083.4,0.00230854]
[1761062029245,0.44068,4083.5,4082.1,0.63883258]
[1761062029246,3.2078,4083.5,4082.1,0.63883258]
[1761062029440,1.77768,4081.8,4081.5,1.2295]
[1761062029752,3.2078,4081.7,4081.6,1.2295]
[1761062030446,3.21055341,4081.7,4081.6,1.23218323]
[1761062030641,4.39275341,4081.7,4081.6,0.00268323]
[1761062030843,3.21055341,4081.7,4081.6,1.11418323]
[1761062031048,4.39275341,4081.7,4081.6,0.00268323]
[1761062031244,4.72805341,4081.7,4081.6,0.00268323]
[1761062031444,4.72805341,4081.7,4080.3,1.35339108]
[1761062031445,0.44097,4080.8,4080.7,1.1115]
[1761062031641,0.4869,4081.0,4080.0,0.63883258]
[1761062031842,1.10236,4081.1,4080.4,1.1115]
[1761062031843,3.2078,4080.6,4080.4,1.1115]
[1761062032046,9.159,4081.1,4081.0,1.5699]
[1761062032243,0.44091,4081.4,4080.7,1.55248]
[1761062032443,1.62311,4081.4,4080.8,0.44097]
[1761062032650,1.62311,4081.4,4080.7,1.11411887]
[1761062032651,0.4869,4080.8,4079.7,3.84663258]
[1761062032847,0.44109,4079.7,4079.4,0.63883258]
[1761062033048,0.4411,4079.6,4079.4,1.1115]
[1761062033351,0.4411,4079.6,4079.2,0.4584]
[1761062033352,9.159,4080.1,4079.8,0.44107]
[1761062033654,0.87105023,4081.5,4079.5,1.1115]
[1761062033655,9.159,4081.2,4080.5,0.441]
[1761062033856,4.39,4081.1,4080.6,1.1115]
[1761062034061,3.2078,4081.1,4080.5,0.00184496]
[1761062034354,3.2078,4080.8,4080.5,0.00184496]
[1761062034652,3.64878,4080.8,4080.5,1.11334496]
[1761062035151,1.1822,4080.7,4080.5,0.00184496]
[1761062035346,1.6232,4080.6,4080.5,0.00184496]
[1761062035951,1.1822,4080.6,4080.5,0.00184496]
[1761062036249,1.62318,4080.7,4080.5,1.11334496]
[1761062036452,1.1822,4080.7,4080.5,1.11334496]
[1761062037046,3.2078,4080.8,4080.5,1.11334496]
[1761062037450,3.64878,4080.8,4080.5,1.11334496]
[1761062037646,4.83098,4080.8,4080.5,1.11334496]
[1761062037856,0.441,4080.6,4080.5,1.11334496]
[1761062038060,1.6232,4080.6,4080.5,0.00184496]
[1761062038255,0.44109,4079.7,4079.6,0.4584]
[1761062038461,3.2078,4079.7,4079.1,0.55098089]
[1761062038861,3.2078,4079.7,4079.3,1.1115]
[1761062039257,0.44112,4079.5,4079.3,1.11363092]
[1761062039467,9.60012,4079.5,4079.3,1.11363092]
[1761062040560,10.78232,4079.5,4079.3,0.00213092]
[1761062040756,10.78232,4079.5,4079.3,1.11363092]
[1761062041062,10.3412,4079.5,4078.4,0.4584]
[1761062041273,3.2078,4078.8,4078.3,3.2078]
[1761062041957,3.20970627,4078.8,4078.3,3.2107161]
[1761062042157,0.44123,4078.5,4078.3,3.2107161]
[1761062042460,0.44126,4078.2,4077.8,0.02452303]
[1761062042759,0.44127,4078.1,4077.8,0.02452303]
[1761062042959,0.44127,4078.1,4077.9,1.1115]
[1761062043262,9.16,4078.4,4078.0,0.44127]
[1761062043452,3.20970627,4078.8,4078.7,1.1115]
[1761062043759,0.00190627,4078.8,4078.7,6.1115]
[1761062044155,0.00190627,4078.8,4078.7,1.1115]
[1761062044456,0.00190627,4078.8,4078.5,0.44122]
[1761062044659,0.00190627,4078.8,4078.7,1.1115]
[1761062045866,0.00190627,4078.8,4078.7,1.5527]
[1761062048262,0.00190627,4078.8,4078.7,6.5527]
[1761062048658,3.2078,4079.5,4079.4,1.1115]
[1761062048853,1.1822,4079.4,4079.1,0.44115]
[1761062049058,1.1822,4079.4,4079.2,1.1115]
[1761062049457,1.1822,4079.2,4079.0,1.55266]
[1761062049664,0.0026242,4079.2,4079.1,1.1115]
[1761062049959,0.0026242,4079.2,4078.0,1.10610559]
[1761062049960,0.44116,4079.1,4078.6,0.4412]
[1761062050163,1.1822,4078.9,4078.6,1.1115]
[1761062050363,1.1822,4078.9,4078.7,1.1115]
[1761062050565,1.1822,4078.9,4078.7,1.5527]
[1761062051264,3.2078,4079.0,4078.9,1.1115]
[1761062051453,3.2078,4079.0,4078.9,1.5699]
[1761062051654,3.2078,4079.0,4078.9,1.1115]
[1761062052162,1.1822,4078.9,4078.8,0.44118]
[1761062052368,1.1822,4078.9,4078.6,1.1115]
[1761062052564,1.1822,4078.6,4078.3,1.1115]
[1761062053262,0.44127,4078.1,4078.0,3.21072559]
[1761062053467,1.62347,4078.1,4078.0,0.00292559]
[1761062053771,1.1822,4078.4,4078.0,1.11442559]
[1761062053959,1.1822,4078.1,4078.0,1.11442559]
[1761062054154,1.1822,4078.1,4078.0,0.00292559]
[1761062055368,6.1822,4078.1,4078.0,0.00292559]
[1761062056064,1.1822,4078.1,4078.0,0.00292559]
[1761062056260,6.1822,4078.1,4078.0,0.00292559]
[1761062056570,1.1822,4077.9,4077.8,0.02452303]
[1761062056772,13.548,4077.9,4077.8,0.02452303]
[1761062057068,18.548,4077.9,4077.8,0.02452303]
[1761062057367,0.44135,4077.3,4077.2,1.1115]
[1761062057667,12.80715,4077.3,4077.2,1.1115]
[1761062058062,0.44147,4076.3,4076.0,3.2078]
[1761062058257,1.10323,4077.9,4076.0,3.2078]
[1761062058258,0.44148,4076.2,4076.0,3.2078]
[1761062058462,0.44446217,4076.2,4076.0,3.21069321]
[1761062058873,3.2078,4076.1,4076.0,0.00289321]
[1761062059264,8.2078,4076.1,4076.0,0.00289321]
[1761062059472,3.2078,4076.1,4076.0,0.00289321]
[1761062059969,8.2078,4076.1,4076.0,0.00289321]
[1761062060472,3.2078,4076.1,4076.0,0.00289321]
[1761062061372,8.2078,4076.1,4076.0,0.00289321]
[1761062061558,0.44156,4075.4,4074.8,0.44162]
[1761062061764,0.44157,4075.3,4074.9,0.44161]
[1761062062066,3.2078,4075.5,4074.5,1.10413]
[1761062062266,0.44156,4075.4,4075.1,0.44158]
[1761062062476,0.44157,4075.3,4074.9,0.44161]
[1761062062764,3.2078,4075.5,4075.3,0.44156]
[1761062062979,3.2078,4075.5,4074.5,0.00189335]
[1761062063472,3.2078,4075.5,4075.3,0.44156]
[1761062064073,3.2078,4075.5,4075.1,0.44158]
[1761062064074,0.44156,4075.4,4075.1,0.44158]
[1761062064269,3.2078,4075.5,4075.3,0.44157]
[1761062064964,3.2078,4075.5,4075.1,0.44159]
[1761062065272,3.64935,4075.5,4075.1,0.44159]
[1761062065472,3.64935,4075.5,4074.5,1.10603335]
[1761062065473,0.44156,4075.4,4075.2,0.44158]
[1761062065668,3.2078,4075.5,4075.3,0.44156]
[1761062066170,3.2078,4075.5,4074.5,1.10604335]
[1761062066171,0.4416,4075.0,4074.7,0.44163]
[1761062066475,0.4416,4075.0,4074.8,0.44162]
[1761062066664,0.4416,4075.1,4074.5,0.00189335]
[1761062066865,0.44157,4075.3,4075.0,0.4416]
[1761062067066,0.44159,4075.1,4074.8,0.44162]
[1761062067376,0.44159,4075.2,4075.0,0.4416]
[1761062067567,0.44156,4075.4,4075.0,0.4416]
[1761062067775,3.2078,4075.5,4074.5,0.00189335]
[1761062067974,0.4416,4075.1,4074.9,0.44161]
[1761062068176,1.1039,4075.4,4074.5,0.44354335]
[1761062068375,0.44162,4074.9,4074.6,0.44164]
[1761062068676,1.1039,4075.4,4074.5,0.00189335]
[1761062068677,0.44162,4074.8,4074.5,0.00189335]
[1761062068876,0.44162,4074.8,4074.5,0.44354335]
[1761062069076,0.44162,4074.9,4074.6,0.44164]
[1761062069279,0.44163,4074.8,4074.6,0.44164]
[1761062069473,0.44161,4075.0,4074.7,0.44163]
[1761062069667,0.44161,4074.9,4074.5,0.00189335]
[1761062069976,0.44161,4075.0,4074.7,0.44163]
[1761062070162,1.10393,4075.3,4074.5,0.00189335]
[1761062070368,0.44164,4074.7,4074.5,0.00189335]
[1761062070564,3.64944,4074.7,4074.5,0.00189335]
[1761062070770,3.64944,4074.7,4073.5,0.44176]
[1761062070771,1.10417,4074.4,4073.5,0.44176]
[1761062070970,0.44172,4074.0,4073.4,3.2078]
[1761062071171,3.2078,4074.2,4073.4,3.2078]
[1761062071377,9.159,4074.3,4074.1,0.44169]
[1761062071672,9.159,4074.3,4074.1,3.65205742]
[1761062071876,9.159,4074.3,4074.1,0.44425742]
[1761062072273,3.2078,4074.7,4074.1,8.21036742]
[1761062072468,3.2078,4074.7,4074.6,0.44164]
[1761062072970,3.2078,4074.7,4074.1,3.21036742]
[1761062073168,3.2078,4074.7,4074.1,0.44425742]
[1761062073169,0.44167,4074.4,4074.1,0.44425742]
[1761062073473,3.2078,4074.7,4074.2,0.44169]
[1761062073674,3.64944,4074.7,4074.1,0.00256742]
[1761062073876,3.2078,4074.7,4074.5,0.44165]
[1761062074175,8.2078,4074.7,4074.1,0.00256742]
[1761062074374,3.266,4075.4,4072.8,0.02455313]
[1761062074375,0.44183,4072.9,4072.8,0.02455313]
[1761062074565,0.4419,4072.3,4072.1,3.2078]
[1761062074875,0.44192,4072.1,4071.7,0.47011096]
[1761062075266,0.00228821,4072.1,4071.8,3.2078]
[1761062075873,0.00228821,4072.1,4071.7,0.00214583]
[1761062076073,3.2078,4072.0,4071.7,0.48928841]
[1761062076273,0.00228821,4072.1,4071.9,0.44193]
[1761062076574,0.00228821,4072.1,4071.7,0.48928841]
[1761062076779,0.00228821,4072.1,4071.9,0.44193]
[1761062077165,0.00228821,4072.1,4071.7,0.48928841]
[1761062077468,0.00228821,4072.1,4071.7,0.93123841]
[1761062077874,0.00228821,4072.1,4071.7,0.48928841]
[1761062078477,0.00228821,4072.1,4071.8,0.44195]
[1761062078679,0.00228821,4072.1,4071.9,0.44193]
[1761062078873,0.44195,4071.9,4071.7,0.00214583]
[1761062080177,5.0,4071.8,4071.7,0.00214583]
[1761062080375,5.0,4071.8,4067.5,5.06914206]
[1761062080376,0.4421,4070.4,4070.3,3.2078]
[1761062080576,3.2078,4070.5,4070.0,0.46662033]
[1761062080880,3.2078,4070.5,4069.8,3.2078]
[1761062081064,3.2078,4070.5,4067.0,2.21235]
[1761062081065,0.44217,4069.8,4069.7,3.61e-06]
[1761062081265,0.44217,4069.8,4068.2,0.46876846]
[1761062081266,0.44224,4069.1,4068.2,0.46876846]
[1761062081472,3.2078,4068.7,4068.2,0.001843]
[1761062082069,3.2078,4068.7,4068.4,0.44232]
[1761062082275,3.2078,4068.7,4068.2,0.47882207]
[1761062082276,3.2078,4068.7,4068.2,0.001843]
[1761062082473,3.2078,4068.7,4068.3,0.44232]
[1761062082881,3.2078,4068.7,4068.2,0.001843]
[1761062083071,0.44237,4067.9,4067.8,0.02458331]
[1761062083269,0.44237,4067.9,4066.4,3.2078]
[1761062083270,3.2078,4067.9,4066.4,3.2078]
[1761062083473,3.2078,4067.3,4067.1,0.44245]
[1761062083767,3.2078,4067.3,4067.1,0.91576425]
[1761062083969,3.2078,4067.7,4067.4,0.44242]
[1761062084170,3.2078,4067.7,4067.1,0.00286164]
[1761062084373,3.2078,4067.2,4067.1,0.00286164]
[1761062084977,8.2078,4067.2,4065.5,3.2078]
[1761062085180,4.59,4068.1,4065.0,3.2078]
[1761062085181,3.2078,4066.5,4065.0,3.2078]
[1761062085377,3.2078,4066.5,4066.1,0.44256]
[1761062085577,3.2078,4066.5,4066.3,0.44254]
[1761062085975,3.2078,4066.5,4066.3,0.44428169]
[1761062086279,3.2078,4067.5,4067.1,0.44245]
[1761062086472,3.2078,4067.5,4066.3,0.00174169]
[1761062086679,4.217,4068.1,4066.3,0.00174169]
[1761062086680,3.2078,4066.8,4066.3,0.00174169]
[1761062087469,5.0,4066.7,4064.6,3.2078]
[1761062087676,3.2078,4065.5,4065.2,0.44266]
[1761062088482,3.65287707,4065.5,4065.2,0.0025783]
[1761062088671,3.21023707,4065.5,4065.2,0.0025783]
[1761062089080,3.21023707,4065.5,4065.2,0.4452383]
[1761062089284,3.21023707,4065.5,4065.3,0.44265]
[1761062089682,0.00243707,4065.5,4065.3,0.44265]
[1761062089990,1.0553,4065.4,4065.3,0.44265]
[1761062090486,1.5042,4065.3,4065.2,0.0025783]
[1761062091578,1.1349,4064.9,4063.7,4.4015]
[1761062091773,3.2078,4065.0,4064.9,1.6364]
[1761062091981,4.34513707,4065.5,4065.4,0.44264]
[1761062092379,3.21023707,4065.5,4065.2,0.44266]
[1761062092587,1.1349,4065.4,4064.9,0.44269]
[1761062092774,3.21023707,4065.5,4064.2,4.4015]
[1761062092775,1.1349,4064.9,4064.5,1.1937]
[1761062092974,0.00243707,4065.5,4064.4,0.00179731]
[1761062092975,0.00243707,4065.5,4065.4,0.44264]
[1761062093380,1.13733707,4065.5,4064.9,1.1937]
[1761062093690,0.00243707,4065.5,4065.4,1.1937]
[1761062094287,1.13733707,4065.5,4065.3,0.44265]
[1761062094682,0.00243707,4065.5,4065.4,1.1937]
[1761062095084,0.00243707,4065.5,4065.4,6.1937]
[1761062096389,3.2078,4066.5,4066.2,1.1937]
[1761062096585,3.2078,4066.5,4066.4,1.63623]
[1761062097092,4.3427,4067.1,4067.0,0.44247]
[1761062097482,4.34452859,4067.1,4067.0,0.44247]
[1761062097786,4.34452859,4067.1,4067.0,0.8576363]
[1761062098380,3.20962859,4067.1,4067.0,2.0513363]
[1761062098579,0.00182859,4067.1,4067.0,2.0513363]
[1761062099195,0.00182859,4067.1,4066.9,3.2078]
[1761062099196,6.13672859,4067.1,4066.9,3.2078]
[1761062099486,1.1349,4066.9,4066.3,0.44254]
[1761062099692,1.1349,4066.8,4066.4,0.44253]
[1761062099896,1.1349,4066.8,4065.7,1.1937]
[1761062100090,1.1349,4066.9,4065.7,1.61628977]
[1761062100294,1.1349,4065.9,4065.7,0.42258977]
[1761062100492,1.1349,4065.9,4065.6,0.44262]
[1761062100684,1.1349,4065.9,4065.7,0.44261]
[1761062100892,1.1349,4065.8,4065.6,0.41841407]
[1761062101190,1.1349,4065.5,4064.8,9.375]
[1761062101393,1.1349,4065.2,4065.0,0.44268]
[1761062102289,1.1349,4065.2,4065.0,0.87142788]
[1761062102684,3.2078,4066.0,4065.3,1.1937]
[1761062102888,3.2078,4066.0,4065.9,1.63629]
[1761062103284,3.2078,4066.0,4065.9,0.44259]
[1761062103495,1.1349,4066.0,4065.9,0.44259]
[1761062103692,3.2078,4066.5,4065.4,10.5627]
[1761062103693,1.1349,4066.3,4065.4,1.1937]
[1761062103994,3.2078,4066.5,4066.4,0.44254]
[1761062104397,4.3427,4066.5,4066.4,0.44254]
[1761062104986,1.1349,4067.0,4066.8,0.44249]
[1761062105188,0.00182859,4067.1,4067.0,1.63617]
[1761062105587,0.00182859,4067.1,4067.0,6.63617]
[1761062105897,0.00182859,4067.1,4067.0,1.63617]
[1761062106394,0.00182859,4067.1,4067.0,6.63617]
[1761062106789,0.01094,4067.6,4067.5,1.63612]
[1761062107187,0.01094,4067.6,4067.5,6.63612]
[1761062107496,3.19686,4068.2,4068.1,1.63605]
[1761062107699,1.1349,4068.6,4068.5,0.44231]
[1761062107906,1.13705715,4068.6,4068.5,0.44498447]
[1761062108202,4.249,4070.3,4068.5,0.44498447]
[1761062108203,4.3427,4069.7,4068.6,1.1937]
[1761062108395,3.2078,4069.7,4069.6,1.1937]
[1761062108592,3.2078,4069.7,4069.5,0.44219]
[1761062109297,3.20959721,4069.7,4069.5,0.44219]
[1761062109497,4.34449721,4069.7,4069.5,0.44219]
[1761062109695,3.20959721,4069.7,4069.5,0.44219]
[1761062109996,3.20959721,4069.7,4069.6,1.1937]
[1761062110197,3.20959721,4069.7,4069.5,0.44219]
[1761062110504,1.1349,4069.6,4069.4,0.4422]
[1761062111005,0.00179721,4069.7,4069.6,1.63589]
[1761062111497,0.00179721,4069.7,4069.6,6.63589]
[1761062112203,0.00179721,4069.7,4069.6,7.09729]
[1761062112596,1.1349,4071.1,4071.0,0.44203]
[1761062113394,4.3427,4071.8,4071.1,1.1937]
[1761062113601,1.1349,4071.7,4071.6,0.44196]
[1761062113795,1.1349,4071.7,4071.6,0.00245822]
[1761062115509,3.21012742,4071.8,4071.7,0.44196]
[1761062115703,0.00232742,4071.8,4071.7,6.63566]
[1761062117302,0.00232742,4071.8,4071.7,1.63566]
[1761062120694,1.0485,4071.7,4071.6,0.42289987]
[1761062120993,0.44202,4071.2,4070.7,0.44206]
[1761062121296,1.0485,4070.8,4070.6,0.44208]
[1761062121696,1.0485,4070.8,4070.6,0.86770424]
[1761062121901,1.0485,4070.8,4070.6,1.9495146]
[1761062122100,1.0485,4071.5,4071.3,0.442]
[1761062122300,3.2078,4071.6,4070.9,1.0797]
[1761062122301,2.86357544,4071.6,4070.9,1.0797]
[1761062122500,1.0485,4071.5,4071.3,0.442]
[1761062122905,1.0485,4071.5,4071.2,0.44201]
[1761062123103,1.0485,4071.5,4071.1,0.44202]
[1761062123304,0.44199,4071.4,4070.6,0.4277346]
[1761062123609,1.0485,4071.1,4070.6,0.4277346]
[1761062123906,1.0485,4071.1,4070.9,0.44204]
[1761062124297,1.0485,4071.1,4070.6,0.4277346]
[1761062124499,1.0485,4070.9,4070.6,0.8698046]
[1761062124704,1.0485,4070.9,4070.7,1.52176]
[1761062125208,0.4297,4071.2,4071.1,0.44202]
[1761062125209,1.0485,4071.2,4071.1,0.44202]
[1761062125703,1.0485,4071.2,4071.0,0.44203]
[1761062125908,1.05082742,4071.8,4071.5,0.44198]
[1761062126103,1.0485,4071.7,4071.5,0.44198]
[1761062126411,1.0485,4071.7,4070.9,3.2078]
[1761062126412,1.0485,4071.6,4071.3,0.442]
[1761062126704,1.0485,4071.2,4070.7,10.3817]
[1761062127006,1.0485,4071.2,4071.0,0.44203]
[1761062127606,3.2078,4071.5,4071.4,0.44199]
[1761062127805,3.2078,4071.5,4071.4,1.52169]
[1761062128004,1.0485,4071.3,4070.8,1.0797]
[1761062128210,1.4782,4071.2,4071.0,0.44203]
[1761062128409,1.0485,4071.1,4071.0,0.44203]
[1761062129221,4.2563,4071.5,4071.4,0.44199]
[1761062130206,1.05082742,4071.8,4071.7,0.44196]
[1761062130805,0.00232742,4071.8,4071.7,1.52166]
[1761062131200,1.05082742,4071.8,4071.7,0.44196]
[1761062132005,0.00232742,4071.8,4071.7,1.52166]
[1761062133309,1.5672,4072.8,4071.7,1.52166]
[1761062133310,1.0705,4072.8,4072.7,0.44185]
[1761062134011,1.0705,4072.8,4071.7,9.286]
[1761062134012,1.0485,4072.2,4071.7,9.286]
[1761062134206,1.0485,4072.2,4071.0,4.31287]
[1761062134207,1.0485,4071.8,4071.0,4.2875]
[1761062134415,1.0485,4071.8,4071.6,0.44197]
[1761062134608,4.2563,4071.7,4071.6,0.44197]
[1761062135405,1.0485,4071.7,4071.6,0.44197]
[1761062136309,4.25878123,4072.2,4071.5,1.10496]
[1761062136614,4.25878123,4072.2,4072.1,0.44192]
[1761062137005,1.0485,4072.1,4071.9,0.44193]
[1761062138905,1.0485,4072.1,4071.9,1.52163]
[1761062139112,1.0485,4072.1,4071.9,0.44193]
[1761062141214,1.0485,4072.1,4072.0,0.44193]
[1761062144422,1.0485,4072.1,4071.8,0.65121908]
[1761062144608,1.0485,4072.1,4071.3,1.26563946]
[1761062144609,1.0485,4071.8,4071.7,0.44196]
[1761062145008,1.0485,4071.8,4071.7,1.09317908]
[1761062146518,1.0485,4071.8,4071.7,0.44196]
[1761062147221,3.21028123,4072.2,4072.1,0.44192]
[1761062147714,0.00248123,4072.2,4072.1,1.52162]
[1761062148122,0.00248123,4072.2,4072.1,2.36721108]
[1761062148318,1.05098123,4072.2,4072.1,1.28751108]
[1761062149521,1.05098123,4072.2,4072.1,2.36721108]
[1761062149717,0.00248123,4072.2,4072.1,2.36721108]
[1761062149925,0.00248123,4072.2,4072.1,1.52162]
[1761062150316,1.05098123,4072.2,4072.1,1.52162]
[1761062150622,1.48068123,4072.2,4072.1,0.44192]
[1761062151320,1.05098123,4072.2,4072.1,1.47312]
[1761062151517,0.00248123,4072.2,4072.1,1.47312]
[1761062151819,0.99998123,4072.2,4072.1,0.44192]
[1761062152123,0.00248123,4072.2,4072.1,1.47312]
[1761062152716,0.00248123,4072.2,4072.1,2.73875946]
[1761062153121,0.00248123,4072.2,4072.1,7.73875946]
[1761062154226,1.23e-06,4072.2,4072.1,7.73875946]
[1761062154725,1.23e-06,4072.2,4072.1,6.47312]
[1761062155825,3.2078,4073.2,4073.1,0.44181]
[1761062156024,0.9975,4074.2,4074.1,0.4417]
[1761062156527,0.9975,4074.2,4074.1,1.4729]
[1761062156826,3.2078,4074.7,4074.5,0.44166]
[1761062157021,3.21068153,4074.7,4074.5,1.90355545]
[1761062157217,0.00288153,4074.7,4074.6,1.0312]
[1761062157720,0.00288153,4074.7,4074.6,1.68095575]
[1761062158120,0.9975,4075.6,4075.5,0.44155]
[1761062158727,3.2078,4075.8,4075.7,1.47273]
[1761062159026,0.9975,4076.2,4076.1,0.44147]
[1761062159325,0.999967,4076.2,4076.1,0.44147]
[1761062159823,0.999967,4076.2,4075.7,1.0312]
[1761062159824,0.999967,4076.2,4076.0,0.44149]
[1761062160225,0.002467,4076.2,4076.1,1.0312]
[1761062160822,0.002467,4076.2,4076.1,1.4437]
[1761062161219,1.43888,4077.1,4076.4,0.44145]
[1761062161424,1.43888,4077.1,4076.5,0.44143]
[1761062161425,0.4075,4076.8,4076.5,0.44143]
[1761062161726,0.9975,4076.7,4076.5,1.47263]
[1761062161920,0.9975,4077.1,4077.0,0.44138]
[1761062162126,0.9975,4077.4,4077.3,0.44135]
[1761062162334,1.00003486,4077.4,4077.3,0.44135]
[1761062162728,0.00253486,4077.4,4077.3,1.47255]
[1761062163629,4.643,4079.4,4077.3,1.47255]
[1761062163630,0.9975,4078.8,4077.5,1.51212]
[1761062163834,0.9975,4078.8,4078.4,1.0312]
[1761062164030,3.64897,4079.1,4078.5,0.44122]
[1761062164230,3.64897,4079.1,4078.1,4.239]
[1761062164231,0.9975,4078.8,4078.6,0.44121]
[1761062164435,3.64897,4079.1,4077.6,11.4476]
[1761062164436,3.2078,4079.1,4077.7,1.0312]
[1761062164732,0.9975,4077.8,4077.6,1.1553]
[1761062165230,0.9975,4078.1,4077.7,1.0312]
[1761062165433,1.40799574,4078.9,4078.3,1.0312]
[1761062165629,0.9975,4078.8,4078.3,0.44124]
[1761062166031,0.9975,4078.8,4078.4,0.44123]
[1761062166231,0.9975,4078.8,4078.3,0.44124]
[1761062166232,0.9975,4078.7,4078.3,0.44124]
[1761062166639,0.9975,4078.7,4078.2,9.188]
[1761062166933,0.9975,4078.3,4078.2,9.188]
[1761062167436,0.9975,4078.7,4078.2,9.188]
[1761062167636,0.9975,4078.3,4078.2,9.188]
[1761062168428,1.43874,4078.3,4078.2,9.188]
[1761062168634,0.9975,4078.0,4077.8,0.7919]
[1761062169936,0.9975,4078.0,4077.8,1.2332]
[1761062170138,0.9975,4078.4,4078.2,0.44125]
[1761062170337,0.9975,4078.4,4077.8,0.7919]
[1761062170338,3.2078,4078.5,4078.4,1.47243]
[1761062170539,4.2053,4078.5,4078.4,0.44123]
[1761062171241,3.2078,4078.5,4078.2,0.44125]
[1761062171435,0.9975,4078.4,4078.2,0.44125]
[1761062171634,0.9975,4078.8,4078.6,0.44121]
[1761062171935,1.43869,4078.8,4078.4,0.44123]
[1761062172139,0.9975,4078.7,4078.4,0.44123]
[1761062173134,0.9975,4078.7,4078.5,1.47242]
[1761062173744,0.9975,4078.7,4078.2,9.184]
[1761062173745,1.00049574,4078.9,4078.7,1.4724]
[1761062174139,1.00049574,4078.9,4078.2,10.28712]
[1761062174140,0.9975,4078.8,4078.4,0.44123]
[1761062174344,0.44119,4078.8,4078.5,0.44122]
[1761062174640,0.9975,4078.7,4078.2,10.2152]
[1761062174846,0.9975,4078.7,4078.3,0.44123]
[1761062175141,0.9975,4078.6,4078.2,9.184]
[1761062175342,0.9975,4078.3,4078.2,9.184]
[1761062177040,0.9975,4077.9,4077.8,0.7919]
[1761062177847,4.2053,4077.9,4077.8,0.7919]
[1761062178053,9.64659,4077.9,4077.8,0.7919]
[1761062178236,9.64659,4077.9,4077.0,0.00208385]
[1761062178237,1.43887,4077.1,4077.0,0.00208385]
[1761062178549,0.9975,4077.1,4077.0,0.00208385]
[1761062188251,0.9975,4077.1,4077.0,1.45416385]
[1761062189040,0.9975,4077.1,4077.0,0.44346385]
[1761062189849,0.84883,4077.5,4077.0,1.01278385]
[1761062189850,0.4075,4077.5,4077.0,1.01278385]
[1761062190058,0.9527,4077.6,4077.5,0.44132]
[1761062190248,0.44133,4077.5,4077.0,1.09023691]
[1761062190447,0.3736,4077.6,4077.0,0.00208385]
[1761062190448,4.1605,4077.2,4077.0,0.00208385]
[1761062190648,1.39407,4077.1,4077.0,0.00208385]
[1761062190954,1.39413,4076.6,4076.5,0.00999]
[1761062191346,0.9527,4076.6,4076.5,0.00999]
[1761062191542,0.9527,4076.6,4076.5,0.37186741]
[1761062191956,0.9527,4076.6,4076.5,0.37396083]
[1761062192149,0.9527,4076.6,4076.5,0.81540083]
[1761062192461,0.3736,4077.0,4076.5,0.37396083]
[1761062192462,0.9527,4076.9,4076.5,0.37396083]
[1761062192760,0.9527,4076.9,4076.8,0.44141]
[1761062193152,0.9527,4076.8,4076.6,0.44142]
[1761062193353,0.44141,4076.8,4076.5,0.37396083]
[1761062193552,0.9527,4076.6,4076.5,0.37396083]
[1761062193765,0.9527,4076.6,4076.5,0.81540083]
[1761062194155,0.9527,4076.6,4076.5,0.37396083]
[1761062194663,0.9527,4076.6,4076.5,0.81540083]
[1761062195348,0.9527,4076.6,4076.5,0.36397083]
[1761062196055,0.9527,4076.6,4076.5,0.80541083]
[1761062196751,0.9527,4077.5,4076.7,1.0107]
[1761062196949,0.9527,4076.9,4076.7,0.64677306]
[1761062197154,0.44142,4076.7,4076.5,10.18674389]
[1761062197361,1.39413,4076.6,4076.5,0.36397083]
[1761062197562,0.9527,4076.6,4076.5,0.36397083]
[1761062199053,0.9527,4076.6,4076.5,0.00209342]
[1761062199954,1.47693,4077.6,4076.5,0.00209342]
[1761062199955,0.9527,4077.9,4077.7,0.44131]
[1761062200155,3.2078,4079.3,4077.9,1.0107]
[1761062200357,3.2078,4079.3,4078.0,0.44127]
[1761062200358,0.44123,4078.5,4078.0,0.44127]
[1761062200552,0.44122,4078.6,4078.1,0.44126]
[1761062200948,3.5814,4078.8,4077.8,3.2078]
[1761062201153,0.44129,4078.0,4077.8,3.2078]
[1761062201354,0.44131,4077.8,4077.5,0.64560629]
[1761062201553,0.44131,4077.8,4077.4,0.64560629]
[1761062201554,0.44133,4077.6,4077.4,0.64560629]
[1761062201761,0.44133,4077.6,4077.1,0.44137]
[1761062202163,0.9527,4077.5,4077.2,0.44136]
[1761062202364,0.9527,4077.4,4077.2,0.44136]
[1761062202555,0.9527,4077.4,4077.2,1.45206]
[1761062202959,0.9527,4077.4,4077.0,10.26198629]
[1761062203156,0.9527,4077.4,4076.4,0.2998]